fUSD/lending_fUSD_20250116
["ID","MTS","AMOUNT","RATE_DAILY","PERIOD"]
[349169587,1737005438239,-500.0,0.00043499,25]
[349169588,1737005438249,-500.0,0.00043499,25]
[349169589,1737005438259,-500.0,0.00043499,25]
[349169590,1737005438270,-500.0,0.00043499,25]
[349169591,1737005438279,-500.0,0.00043499,25]
[349169592,1737005438289,-500.0,0.00043499,25]
[349169593,1737005438299,-500.0,0.00043499,25]
[349169594,1737005438309,-1000.0,0.00043499,120]
[349169595,1737005438319,-276.12,0.00043499,25]
[349169596,1737005438329,-500.0,0.00043499,25]
[349169597,1737005438339,-500.0,0.00043499,25]
[349169598,1737005438348,-234.68765987,0.00043499,25]
[349169599,1737005438359,-514.31433918,0.00043499,25]
[349169600,1737005438369,-500.0,0.00043499,25]
[349169602,1737005438379,-500.0,0.00043499,25]
[349169604,1737005438389,-500.0,0.00043499,25]
[349169606,1737005438398,-500.0,0.00043499,25]
[349169608,1737005438407,-500.0,0.00043499,25]
[349169610,1737005438417,-342.61,0.00043499,25]
[349169612,1737005438427,-302.93,0.00043499,25]
[349169614,1737005438439,-500.0,0.00043499,25]
[349169616,1737005438448,-500.0,0.00043499,7]
[349169618,1737005438458,-500.0,0.00043499,25]
[349169620,1737005438467,-500.0,0.00043499,25]
[349169622,1737005438478,-500.0,0.00043499,25]
[349169624,1737005438487,-500.0,0.00043499,45]
[349169626,1737005438497,-500.0,0.00043499,45]
[349169628,1737005438507,-580.96,0.00043499,45]
[349169630,1737005438516,-500.0,0.00043499,25]
[349169632,1737005438525,-500.0,0.00043499,25]
[349169634,1737005438534,-545.93,0.00043499,25]
[349169636,1737005438543,-500.0,0.00043499,25]
[349169638,1737005438552,-500.0,0.00043499,25]
[349169640,1737005438562,-611.14,0.00043499,25]
[349169642,1737005438571,-500.0,0.00043499,25]
[349169644,1737005438581,-500.0,0.00043499,25]
[349169646,1737005438590,-500.0,0.00043499,25]
[349169648,1737005438600,-500.0,0.00043499,25]
[349169650,1737005438609,-165.22,0.00043499,25]
[349169652,1737005438619,-500.0,0.00043499,25]
[349169654,1737005438628,-500.0,0.00043499,25]
[349169656,1737005438637,-500.0,0.00043499,25]
[349169658,1737005438647,-500.0,0.00043499,25]
[349169660,1737005438656,-500.0,0.00043499,25]
[349169662,1737005438665,-500.0,0.00043499,25]
[349169664,1737005438674,-338.32,0.00043499,25]
[349169666,1737005438684,-316.20237445,0.00043499,25]
[349169668,1737005438694,-500.0,0.00043499,25]
[349169670,1737005438704,-500.0,0.00043499,25]
[349169672,1737005438713,-500.0,0.00043499,25]
[349169674,1737005438722,-574.94,0.00043499,25]
[349169676,1737005438731,-500.0,0.00043499,25]
[349169678,1737005438741,-1026.18,0.00043499,25]
[349169680,1737005438751,-1026.18,0.00043499,25]
[349169682,1737005438760,-1026.18,0.00043499,25]
[349169684,1737005438770,-1026.18,0.00043499,25]
[349169686,1737005438780,-1026.18,0.00043499,25]
[349169688,1737005438790,-1026.18,0.00043499,25]
[349169690,1737005438800,-1026.18,0.00043499,25]
[349169692,1737005438809,-1026.18,0.00043499,25]
[349169694,1737005438819,-1026.18,0.00043499,25]
[349169696,1737005438828,-1026.18,0.00043499,25]
[349169698,1737005438837,-1026.18,0.00043499,25]
[349169700,1737005438847,-1026.18,0.00043499,25]
[349169702,1737005438856,-1026.18,0.00043499,25]
[349169703,1737005438865,-1026.18,0.00043499,25]
[349169705,1737005438874,-1026.18,0.00043499,25]
[349169707,1737005438884,-1026.18,0.00043499,25]
[349169710,1737005438896,-1026.18,0.00043499,25]
[349169711,1737005438905,-1026.18,0.00043499,25]
[349169713,1737005438914,-1026.18,0.00043499,25]
[349169715,1737005438923,-1026.18,0.00043499,25]
[349169717,1737005438933,-1026.18,0.00043499,25]
[349169719,1737005438944,-1026.29679816,0.00043499,25]
[349169721,1737005438954,-318.32,0.00043499,25]
[349169724,1737005438964,-500.0,0.00043499,25]
[349169726,1737005438974,-160.33,0.00043499,25]
[349169727,1737005438984,-500.0,0.00043499,25]
[349169729,1737005438993,-500.0,0.00043499,120]
[349169731,1737005439003,-500.0,0.00043499,25]
[349169733,1737005439012,-500.0,0.00043499,25]
[349169735,1737005439022,-500.0,0.00043499,25]
[349169737,1737005439031,-510.25689644,0.00043499,25]
[349169739,1737005439042,-500.0,0.00043499,25]
[349169741,1737005439052,-500.0,0.00043499,25]
[349169743,1737005439062,-500.0,0.00043499,25]
[349169746,1737005439079,-500.0,0.00043499,25]
[349169748,1737005439090,-500.0,0.00043499,25]
[349169750,1737005439102,-1363.36,0.00043499,25]
[349169752,1737005439115,-1363.36,0.00043499,25]
[349169754,1737005439127,-1363.36,0.00043499,25]
[349169757,1737005439140,-1363.36,0.00043499,25]
[349169759,1737005439152,-1363.36,0.00043499,25]
[349169761,1737005439163,-1363.36,0.00043499,25]
[349169763,1737005439174,-1363.36,0.00043499,25]
[349169765,1737005439185,-1363.36,0.00043499,25]
[349169767,1737005439198,-1363.36,0.00043499,25]
[349169769,1737005439209,-1363.36,0.00043499,25]
[349169771,1737005439220,-1363.36,0.00043499,25]
[349169773,1737005439231,-1363.36,0.00043499,25]
[349169776,1737005439242,-500.0,0.00043499,25]
[349169778,1737005439253,-1363.36,0.00043499,25]
[349169780,1737005439265,-1363.36,0.00043499,25]
[349169782,1737005439277,-1363.36,0.00043499,25]
[349169784,1737005439289,-1363.36,0.00043499,25]
[349169787,1737005439302,-1363.36,0.00043499,25]
[349169789,1737005439314,-895.13432049,0.00043499,25]
[349169815,1737005439553,-468.22567951,0.00043499,25]
[349169817,1737005439564,-1139.99070411,0.00043499,25]
[349169819,1737005439579,-223.36929589,0.00043499,25]
[349169821,1737005439591,-1363.36,0.00043499,25]
[349169824,1737005439602,-1363.36,0.00043499,25]
[349169826,1737005439614,-1363.36,0.00043499,25]
[349169828,1737005439625,-1363.36,0.00043499,25]
[349169830,1737005439636,-1363.51871558,0.00043499,25]
[349169832,1737005439647,-500.0,0.00043499,25]
[349169835,1737005439657,-198.0,0.00043499,25]
[349169837,1737005439669,-500.0,0.00043499,25]
[349169839,1737005439679,-552.12912621,0.00043499,25]
[349169841,1737005439690,-507.61955957,0.00043499,25]
[349169843,1737005439701,-500.0,0.00043499,25]
[349169845,1737005439712,-500.0,0.00043499,25]
[349169847,1737005439722,-505.08034031,0.00043499,25]
[349169849,1737005439734,-484.01,0.00043499,25]
[349169851,1737005439745,-379.96,0.00043499,25]
[349169853,1737005439756,-500.0,0.00043499,25]
[349169856,1737005439766,-500.0,0.00043499,25]
[349169858,1737005439777,-500.0,0.00043499,25]
[349169860,1737005439788,-158.97,0.00043499,25]
[349169862,1737005439799,-500.0,0.00043499,25]
[349169864,1737005439808,-500.0,0.00043499,25]
[349169866,1737005439818,-500.0,0.00043499,25]
[349169868,1737005439828,-505.66858307,0.00043499,25]
[349169870,1737005439838,-344.04,0.00043499,25]
[349169872,1737005439849,-334.45,0.00043499,25]
[349169874,1737005439859,-500.0,0.00043499,25]
[349169877,1737005439871,-500.0,0.00043499,25]
[349169879,1737005439883,-151.31,0.00043499,25]
[349169881,1737005439895,-503.19120319,0.00043499,25]
[349169883,1737005439906,-500.0,0.00043499,25]
[349169886,1737005439916,-282.47,0.00043499,25]
[349169888,1737005439926,-500.0,0.00043499,25]
[349169890,1737005439936,-500.0,0.00043499,25]
[349169892,1737005439946,-500.0,0.00043499,25]
[349169894,1737005439956,-500.0,0.00043499,25]
[349169897,1737005439967,-239.18,0.00043499,25]
[349169900,1737005439977,-526.81,0.00043499,25]
[349169902,1737005439989,-500.0,0.00043499,25]
[349169904,1737005440000,-500.0,0.00043499,25]
[349169906,1737005440011,-521.1,0.00043499,25]
[349169908,1737005440022,-500.0,0.00043499,25]
[349169910,1737005440033,-500.0,0.00043499,25]
[349169912,1737005440044,-282.73,0.00043499,25]
[349169914,1737005440054,-500.0,0.00043499,25]
[349169917,1737005440069,-500.0,0.00043499,25]
[349169919,1737005440079,-3580.98911836,0.00043499,2]
[349169921,1737005440089,-335.49,0.00043499,25]
[349169923,1737005440100,-500.0,0.00043499,25]
[349169925,1737005440111,-500.0,0.00043499,25]
[349169927,1737005440121,-558.84,0.00043499,25]
[349169929,1737005440131,-500.0,0.00043499,25]
[349169931,1737005440144,-500.0,0.00043499,25]
[349169932,1737005440154,-500.0,0.00043499,25]
[349169934,1737005440165,-500.0,0.00043499,25]
[349169936,1737005440175,-500.0,0.00043499,25]
[349169938,1737005440184,-171.49,0.00043499,25]
[349169940,1737005440196,-535.11,0.00043499,25]
[349169942,1737005440207,-500.0,0.00043499,25]
[349169944,1737005440217,-500.0,0.00043499,25]
[349169946,1737005440228,-500.0,0.00043499,25]
[349169948,1737005440238,-500.0,0.00043499,25]
[349169950,1737005440248,-500.0,0.00043499,25]
[349169953,1737005440259,-500.0,0.00043499,25]
[349169955,1737005440269,-502.51,0.00043499,25]
[349169957,1737005440279,-500.0,0.00043499,25]
[349169959,1737005440290,-500.0,0.00043499,25]
[349169961,1737005440302,-500.0,0.00043499,25]
[349169963,1737005440312,-500.0,0.00043499,25]
[349169965,1737005440322,-500.0,0.00043499,25]
[349169968,1737005440332,-500.0,0.00043499,25]
[349169970,1737005440342,-500.0,0.00043499,25]
[349169972,1737005440353,-500.0,0.00043499,25]
[349169973,1737005440363,-500.0,0.00043499,25]
[349169974,1737005440374,-500.0,0.00043499,25]
[349169975,1737005440384,-500.0,0.00043499,25]
[349169976,1737005440395,-500.0,0.00043499,25]
[349169977,1737005440405,-500.0,0.00043499,25]
[349169978,1737005440415,-500.0,0.00043499,25]
[349169979,1737005440426,-500.0,0.00043499,25]
[349169980,1737005440436,-500.0,0.00043499,25]
[349169981,1737005440446,-500.0,0.00043499,25]
[349169982,1737005440457,-500.0,0.00043499,25]
[349169983,1737005440467,-500.0,0.00043499,25]
[349169984,1737005440477,-500.0,0.00043499,25]
[349169985,1737005440486,-500.0,0.00043499,25]
[349169986,1737005440495,-500.0,0.00043499,25]
[349169987,1737005440505,-500.0,0.00043499,25]
[349169988,1737005440514,-500.0,0.00043499,25]
[349169989,1737005440523,-500.0,0.00043499,25]
[349169990,1737005440533,-500.0,0.00043499,25]
[349169991,1737005440544,-500.0,0.00043499,25]
[349169992,1737005440553,-151.75,0.00043499,25]
[349169993,1737005440563,-500.0,0.00043499,25]
[349169994,1737005440573,-439.66208056,0.00043499,25]
[349169995,1737005440582,-500.0,0.00043499,25]
[349169996,1737005440591,-500.0,0.00043499,25]
[349169997,1737005440604,-500.0,0.00043499,25]
[349169998,1737005440614,-500.0,0.00043499,25]
[349169999,1737005440623,-500.0,0.00043499,25]
[349170000,1737005440633,-500.0,0.00043499,25]
[349170001,1737005440643,-500.0,0.00043499,25]
[349170002,1737005440652,-206.61,0.00043499,25]
[349170003,1737005440662,-189.958223,0.00043499,25]
[349170004,1737005440672,-189.958223,0.00043499,25]
[349170005,1737005440681,-189.958223,0.00043499,25]
[349170006,1737005440691,-500.0,0.00043499,25]
[349170007,1737005440700,-500.0,0.00043499,25]
[349170008,1737005440710,-500.0,0.00043499,25]
[349170009,1737005440719,-356.58,0.00043499,25]
[349170010,1737005440903,-500.0,0.00043499,25]
[349170011,1737005440913,-500.0,0.00043499,25]
[349170012,1737005440923,-500.0,0.00043499,25]
[349170013,1737005440933,-500.0,0.00043499,25]
[349170014,1737005440944,-500.0,0.00043499,25]
[349170015,1737005440954,-500.0,0.00043499,25]
[349170016,1737005440965,-500.0,0.00043499,25]
[349170017,1737005440974,-500.0,0.00043499,25]
[349170018,1737005440983,-500.0,0.00043499,25]
[349170019,1737005440992,-225.08,0.00043499,25]
[349170020,1737005441001,-316.67739377,0.00043499,25]
[349170021,1737005441017,-183.32260623,0.00043499,25]
[349170022,1737005441026,-500.0,0.00043499,25]
[349170023,1737005441036,-500.0,0.00043499,25]
[349170024,1737005441045,-500.0,0.00043499,25]
[349170025,1737005441055,-606.9,0.00043499,25]
[349170026,1737005441067,-500.0,0.00043499,25]
[349170027,1737005441078,-500.0,0.00043499,25]
[349170028,1737005441088,-500.0,0.00043499,25]
[349170029,1737005441098,-500.0,0.00043499,25]
[349170030,1737005441109,-149.36054089,0.00043499,25]
[349170031,1737005441126,-350.63945911,0.00043499,25]
[349170032,1737005441135,-348.16,0.00043499,25]
[349170033,1737005441147,-500.0,0.00043499,25]
[349170034,1737005441157,-500.0,0.00043499,25]
[349170035,1737005441167,-152.59,0.00043499,25]
[349170036,1737005441177,-500.0,0.00043499,25]
[349170037,1737005441187,-500.0,0.00043499,25]
[349170038,1737005441197,-500.0,0.00043499,25]
[349170039,1737005441207,-500.0,0.00043499,25]
[349170040,1737005441218,-500.0,0.00043499,25]
[349170041,1737005441227,-500.0,0.00043499,25]
[349170042,1737005441237,-500.0,0.00043499,25]
[349170043,1737005441246,-419.63,0.00043499,25]
[349170044,1737005441255,-225.13,0.00043499,25]
[349170045,1737005441264,-192.6,0.00043499,25]
[349170046,1737005441274,-500.0,0.00043499,25]
[349170047,1737005441283,-500.0,0.00043499,25]
[349170048,1737005441292,-500.0,0.00043499,25]
[349170049,1737005441301,-500.0,0.00043499,25]
[349170050,1737005441310,-500.0,0.00043499,25]
[349170051,1737005441320,-500.0,0.00043499,25]
[349170052,1737005441329,-260.56,0.00043499,25]
[349170053,1737005441339,-500.0,0.00043499,25]
[349170054,1737005441348,-515.57863168,0.00043499,25]
[349170055,1737005441358,-500.0,0.00043499,25]
[349170056,1737005441369,-500.0,0.00043499,25]
[349170057,1737005441379,-500.0,0.00043499,25]
[349170058,1737005441388,-500.0,0.00043499,25]
[349170059,1737005441398,-374.61,0.00043499,25]
[349170060,1737005441407,-500.0,0.00043499,25]
[349170061,1737005441418,-500.0,0.00043499,25]
[349170062,1737005441428,-326.16,0.00043499,25]
[349170063,1737005441438,-500.0,0.00043499,25]
[349170064,1737005441448,-500.0,0.00043499,25]
[349170065,1737005441457,-500.0,0.00043499,25]
[349170066,1737005441467,-177.44,0.00043499,25]
[349170067,1737005441477,-500.0,0.00043499,25]
[349170068,1737005441487,-515.42,0.00043499,25]
[349170069,1737005441496,-500.0,0.00043499,25]
[349170070,1737005441505,-500.0,0.00043499,25]
[349170071,1737005441515,-500.0,0.00043499,25]
[349170072,1737005441524,-449.19,0.00043499,25]
[349170073,1737005441534,-500.0,0.00043499,25]
[349170074,1737005441544,-561.64,0.00043499,25]
[349170075,1737005441553,-500.0,0.00043499,25]
[349170076,1737005441563,-500.0,0.00043499,25]
[349170077,1737005441573,-500.0,0.00043499,25]
[349170078,1737005441583,-500.0,0.00043499,25]
[349170079,1737005441593,-500.0,0.00043499,25]
[349170080,1737005441603,-500.0,0.00043499,25]
[349170081,1737005441613,-641.65,0.00043499,25]
[349170082,1737005441623,-500.0,0.00043499,25]
[349170083,1737005441633,-318.86,0.00043499,25]
[349170084,1737005441642,-500.0,0.00043499,25]
[349170085,1737005441652,-262.44,0.00043499,25]
[349170086,1737005441662,-500.0,0.00043499,25]
[349170087,1737005441672,-500.0,0.00043499,25]
[349170088,1737005441682,-500.0,0.00043499,25]
[349170089,1737005441691,-500.0,0.00043499,25]
[349170090,1737005441702,-626.27,0.00043499,25]
[349170091,1737005441712,-500.0,0.00043499,25]
[349170092,1737005441722,-153.46453844,0.00043499,25]
[349170093,1737005441732,-500.0,0.00043499,25]
[349170094,1737005441742,-500.0,0.00043499,25]
[349170095,1737005441752,-465.48,0.00043499,25]
[349170096,1737005441762,-500.0,0.00043499,25]
[349170097,1737005441772,-500.0,0.00043499,25]
[349170098,1737005441782,-226.19,0.00043499,25]
[349170099,1737005441791,-340.65,0.00043499,25]
[349170100,1737005441800,-504.14276813,0.00043499,25]
[349170101,1737005441810,-474.25163761,0.00043499,25]
[349170102,1737005441820,-500.0,0.00043499,25]
[349170103,1737005441829,-500.0,0.00043499,25]
[349170104,1737005441838,-500.0,0.00043499,25]
[349170105,1737005441848,-500.0,0.00043499,25]
[349170106,1737005441858,-247.16,0.00043499,25]
[349170107,1737005441867,-500.0,0.00043499,25]
[349170108,1737005441877,-500.0,0.00043499,25]
[349170109,1737005441887,-573.47,0.00043499,25]
[349170110,1737005441897,-223.13,0.00043499,25]
[349170111,1737005441906,-500.0,0.00043499,25]
[349170112,1737005441915,-500.0,0.00043499,25]
[349170113,1737005441924,-154.1,0.00043499,25]
[349170114,1737005441933,-493.1,0.00043499,25]
[349170115,1737005441943,-500.0,0.00043499,25]
[349170116,1737005441952,-500.0,0.00043499,25]
[349170117,1737005441961,-484.6712052,0.00043499,25]
[349170118,1737005441971,-500.0,0.00043499,25]
[349170119,1737005441980,-576.12,0.00043499,25]
[349170120,1737005441991,-92.64047983,0.00043499,25]
[349170121,1737005442005,-407.35952017,0.00043499,25]
[349170122,1737005442016,-500.0,0.00043499,25]
[349170123,1737005442026,-500.0,0.00043499,25]
[349170124,1737005442036,-500.0,0.00043499,25]
[349170125,1737005442046,-500.0,0.00043499,25]
[349170126,1737005442056,-500.0,0.00043499,25]
[349170127,1737005442067,-238.97,0.00043499,25]
[349170128,1737005442078,-500.0,0.00043499,25]
[349170129,1737005442089,-500.0,0.00043499,25]
[349170130,1737005442098,-500.0,0.00043499,25]
[349170131,1737005442108,-273.19,0.00043499,25]
[349170132,1737005442119,-500.0,0.00043499,25]
[349170133,1737005442130,-500.0,0.00043499,25]
[349170134,1737005442140,-500.0,0.00043499,25]
[349170135,1737005442152,-500.0,0.00043499,25]
[349170136,1737005442162,-529.34,0.00043499,25]
[349170137,1737005442171,-500.0,0.00043499,25]
[349170138,1737005442180,-500.0,0.00043499,25]
[349170139,1737005442189,-500.0,0.00043499,25]
[349170140,1737005442199,-500.0,0.00043499,25]
[349170141,1737005442209,-500.0,0.00043499,25]
[349170142,1737005442218,-500.0,0.00043499,25]
[349170143,1737005442227,-361.71,0.00043499,25]
[349170144,1737005442237,-500.0,0.00043499,25]
[349170145,1737005442247,-500.0,0.00043499,25]
[349170146,1737005442256,-466.5,0.00043499,25]
[349170147,1737005442266,-625.98,0.00043499,25]
[349170148,1737005442275,-168.14,0.00043499,25]
[349170149,1737005442285,-500.0,0.00043499,25]
[349170150,1737005442295,-500.0,0.00043499,25]
[349170151,1737005442304,-500.0,0.00043499,25]
[349170152,1737005442314,-446.51,0.00043499,25]
[349170153,1737005442323,-500.0,0.00043499,25]
[349170154,1737005442333,-500.0,0.00043499,25]
[349170155,1737005442343,-315.89,0.00043499,25]
[349170156,1737005442352,-500.0,0.00043499,25]
[349170157,1737005442362,-500.0,0.00043499,25]
[349170158,1737005442372,-500.0,0.00043499,25]
[349170159,1737005442382,-500.0,0.00043499,25]
[349170160,1737005442391,-500.0,0.00043499,25]
[349170161,1737005442401,-452.68,0.00043499,25]
[349170162,1737005442411,-152.37,0.00043499,25]
[349170163,1737005442420,-615.59,0.00043499,25]
[349170164,1737005442430,-629.63,0.00043499,25]
[349170165,1737005442440,-311.84699108,0.00043499,25]
[349170166,1737005442450,-1756.18,0.00043499,25]
[349170167,1737005442460,-1756.18,0.00043499,25]
[349170168,1737005442470,-1756.18,0.00043499,25]
[349170169,1737005442480,-500.0,0.00043499,25]
[349170170,1737005442489,-1756.18,0.00043499,25]
[349170171,1737005442499,-500.0,0.00043499,25]
[349170172,1737005442509,-1756.18,0.00043499,25]
[349170173,1737005442519,-500.0,0.00043499,25]
[349170174,1737005442529,-1756.18,0.00043499,25]
[349170175,1737005442538,-500.0,0.00043499,25]
[349170176,1737005442547,-1756.18,0.00043499,25]
[349170177,1737005442557,-301.32,0.00043499,25]
[349170178,1737005442568,-1756.18,0.00043499,25]
[349170179,1737005442578,-1756.18,0.00043499,25]
[349170180,1737005442588,-1756.18,0.00043499,25]
[349170181,1737005442599,-500.0,0.00043499,25]
[349170182,1737005442608,-1756.18,0.00043499,25]
[349170183,1737005442617,-1756.18,0.00043499,25]
[349170184,1737005442627,-1756.18,0.00043499,25]
[349170185,1737005442636,-1756.18,0.00043499,25]
[349170186,1737005442646,-1756.18,0.00043499,25]
[349170187,1737005442656,-500.0,0.00043499,25]
[349170188,1737005442666,-1756.18,0.00043499,25]
[349170189,1737005442676,-1756.18,0.00043499,25]
[349170190,1737005442686,-1756.18,0.00043499,25]
[349170191,1737005442696,-1756.18,0.00043499,25]
[349170192,1737005442706,-1756.18,0.00043499,25]
[349170193,1737005442715,-500.0,0.00043499,25]
[349170194,1737005442725,-1756.18,0.00043499,25]
[349170195,1737005442735,-500.0,0.00043499,25]
[349170196,1737005442745,-1756.21331613,0.00043499,25]
[349170197,1737005442754,-500.0,0.00043499,25]
[349170198,1737005442764,-500.0,0.00043499,25]
[349170199,1737005442773,-500.0,0.00043499,25]
[349170200,1737005442782,-587.72,0.00043499,25]
[349170201,1737005442791,-500.0,0.00043499,25]
[349170202,1737005442801,-231.77150338,0.00043499,25]
[349170203,1737005442810,-500.0,0.00043499,25]
[349170204,1737005442820,-500.0,0.00043499,25]
[349170205,1737005442830,-500.0,0.00043499,25]
[349170206,1737005442839,-500.0,0.00043499,25]
[349170207,1737005442849,-500.0,0.00043499,25]
[349170208,1737005442859,-500.0,0.00043499,25]
[349170209,1737005442868,-276.68,0.00043499,25]
[349170210,1737005442877,-500.0,0.00043499,25]
[349170211,1737005442887,-275.88,0.00043499,25]
[349170212,1737005442897,-500.0,0.00043499,25]
[349170213,1737005442907,-500.0,0.00043499,25]
[349170214,1737005442916,-500.0,0.00043499,25]
[349170216,1737005442926,-500.0,0.00043499,25]
[349170217,1737005442935,-500.0,0.00043499,25]
[349170218,1737005442947,-500.0,0.00043499,25]
[349170219,1737005442957,-488.31,0.00043499,25]
[349170220,1737005442967,-319.43,0.00043499,25]
[349170221,1737005442976,-500.0,0.00043499,25]
[349170222,1737005442986,-500.0,0.00043499,25]
[349170223,1737005442996,-500.0,0.00043499,25]
[349170224,1737005443005,-500.0,0.00043499,25]
[349170225,1737005443015,-547.0,0.00043499,25]
[349170226,1737005443025,-288.03,0.00043499,25]
[349170227,1737005443035,-500.0,0.00043499,25]
[349170228,1737005443045,-500.0,0.00043499,25]
[349170229,1737005443055,-500.0,0.00043499,25]
[349170230,1737005443067,-178.38,0.00043499,25]
[349170231,1737005443079,-500.0,0.00043499,25]
[349170232,1737005443089,-500.0,0.00043499,25]
[349170233,1737005443099,-500.0,0.00043499,25]
[349170234,1737005443109,-500.0,0.00043499,25]
[349170235,1737005443119,-500.0,0.00043499,25]
[349170236,1737005443129,-568.97,0.00043499,25]
[349170237,1737005443142,-500.0,0.00043499,25]
[349170238,1737005443153,-500.0,0.00043499,25]
[349170239,1737005443163,-340.7,0.00043499,25]
[349170240,1737005443173,-397.76,0.00043499,25]
[349170241,1737005443184,-187.59,0.00043499,25]
[349170242,1737005443195,-330.24,0.00043499,25]
[349170243,1737005443206,-500.0,0.00043499,25]
[349170244,1737005443216,-500.0,0.00043499,25]
[349170245,1737005443226,-500.0,0.00043499,25]
[349170246,1737005443235,-500.0,0.00043499,25]
[349170247,1737005443245,-495.77,0.00043499,25]
[349170248,1737005443254,-500.0,0.00043499,25]
[349170249,1737005443264,-500.0,0.00043499,25]
[349170250,1737005443273,-248.33504351,0.00043499,25]
[349170251,1737005443283,-500.0,0.00043499,25]
[349170252,1737005443292,-500.0,0.00043499,25]
[349170253,1737005443301,-203.68,0.00043499,25]
[349170254,1737005443311,-193.632259,0.00043499,25]
[349170255,1737005443320,-193.632259,0.00043499,25]
[349170256,1737005443329,-193.632259,0.00043499,25]
[349170257,1737005443338,-231.58,0.00043499,25]
[349170258,1737005443348,-500.0,0.00043499,25]
[349170259,1737005443357,-205.95,0.00043499,25]
[349170260,1737005443367,-500.0,0.00043499,25]
[349170261,1737005443376,-459.16,0.00043499,25]
[349170262,1737005443385,-500.0,0.00043499,25]
[349170263,1737005443395,-500.0,0.00043499,25]
[349170264,1737005443405,-536.09,0.00043499,25]
[349170265,1737005443414,-358.91,0.00043499,25]
[349170266,1737005443424,-500.0,0.00043499,25]
[349170267,1737005443433,-500.0,0.00043499,25]
[349170268,1737005443445,-500.0,0.00043499,25]
[349170269,1737005443454,-500.0,0.00043499,25]
[349170270,1737005443464,-500.0,0.00043499,25]
[349170271,1737005443475,-500.0,0.00043499,25]
[349170272,1737005443484,-421.9,0.00043499,25]
[349170273,1737005443494,-601.0,0.000435,7]
[349170274,1737005443504,-25947.80004344,0.000435,37]
[349170275,1737005443514,-141881.11488981,0.000435,31]
[349170276,1737005443528,-2151.0577244,0.000435,31]
[349170277,1737005443539,-986.58501,0.000435,31]
[349170278,1737005443551,-3951.00000001,0.000435,31]
[349170279,1737005443562,-30059.56939588,0.000435,31]
[349170280,1737005443574,-500.0,0.000435,31]
[349170281,1737005443585,-769.22313,0.000435,31]
[349170282,1737005443609,-4476.39938864,0.000435,31]
[349170283,1737005443620,-543.88287535,0.000435,31]
[349170284,1737005443631,-188339.7338151,0.000435,31]
[349170285,1737005443642,-10577.96,0.000435,31]
[349170286,1737005443654,-2315.67999997,0.000435,31]
[349170287,1737005443665,-520.14999995,0.000435,31]
[349170288,1737005443677,-369.5399999,0.000435,31]
[349170289,1737005443688,-847.62299998,0.000435,31]
[349170290,1737005443732,-500.0,0.000435,31]
[349170297,1737005446221,-420.69504374,0.000435,31]